Cogmind - Beta 9.4 @@@ ROGUE MODE // 2020.03.19 @ 19:25:37 Player: Joshua Result: Destroyed by as-04291 with Assembled Blade Performance ------------- Evolutions (0) 0 Regions Visited (3) 600 Robots Destroyed (13) 65 Value Destroyed (196) 196 Prototype IDs (22) 440 Alien Tech Used (0) 0 Bonus (227) 227 TOTAL SCORE: 1528 Bonus ------- Follower Combat Kills 14 Aligned with FarCom 300 Friendly Fire -87 Cogmind --------- Core Integrity 0/250 Matter 280/300 Energy 100/100 System Corruption 0% Temperature Cool (20) Movement Treading (160) Location -10/Exiles Parts ------- > --- POWER (1) -------- (None) > --- PROPULSION (2) --- Light Treads > --- UTILITY (2) ------ Small Storage Unit Medium Storage Unit > --- WEAPON (2) ------- (None) > --- INVENTORY (10) --- Ion Engine Light Assault Rifle Light Assault Rifle XL Autogun Array Mini Grenade Launcher Mini Grenade Launcher Peak State ------------ > --- POWER ------------ Ion Engine > --- PROPULSION ------- Compact Wheel Compact Wheel > --- UTILITY ---------- Small Storage Unit Medium Storage Unit > --- WEAPON ----------- Assault Rifle Assault Rifle > --- INVENTORY -------- Ion Engine Light Treads Light Assault Rifle Light Assault Rifle XL Autogun Array Mini Grenade Launcher Mini Grenade Launcher [Rating: 11] Favorites ----------- Power Ion Engine Engine Ion Engine Propulsion Compact Wheel Treads Light Treads Wheel Compact Wheel Utility Small Storage Unit Storage Small Storage Unit Weapon Assault Rifle Ballistic Gun Assault Rifle Build | -11 -10 -10 -10 ------- Run | Scr Mat Min Exi Slots Evolved . | . . . . Power . | . . . . Propulsion . | . . . . Utility . | . . . . Weapon . | . . . . Parts Attached 13 | 7 3 . 3 Power 1 | 1 . . . Engine 1 | 1 . . . Core . | . . . . Reactor . | . . . . Propulsion 6 | 2 2 . 2 Treads 2 | . 1 . 1 Leg . | . . . . Wheel 4 | 2 1 . 1 Hover . | . . . . Flight . | . . . . Utility 3 | 2 . . 1 Device . | . . . . Storage 3 | 2 . . 1 Processor . | . . . . Hackware . | . . . . Protection . | . . . . Artifact . | . . . . Weapon 3 | 2 1 . . Energy Gun . | . . . . Energy Cannon . | . . . . Ballistic Gun 3 | 2 1 . . Ballistic Cannon . | . . . . Launcher . | . . . . Special Weapon . | . . . . Impact Weapon . | . . . . Slashing Weapon . | . . . . Piercing Weapon . | . . . . Special Melee Weapon . | . . . . Unidentified Prototypes . | . . . . Parts Lost 6 | . 1 . 5 Power 1 | . . . 1 Propulsion 3 | . 1 . 2 Utility . | . . . . Weapon 2 | . . . 2 Highest Loss Streak 5 | . 1 . 5 Average Slot Usage (%) 98 | . 98 100 98 Engine 13 | . 14 14 13 Treads 9 | . 9 14 6 Wheel 18 | . 17 14 21 Storage 28 | . 28 28 28 Ballistic Gun 27 | . 28 28 26 Naked Turns . | . . . . Heaviest Build 21 | 16 17 17 21 Greatest Support 32 | 32 32 20 32 Greatest Overweight (x) 1 | . 1 1 . Average Overweight (x) . | . . . . Largest Inventory Capacity 10 | 8 8 8 10 Average Capacity 8 | 6 8 8 8 Most Carried 10 | 8 8 8 10 Average Carried 7 | 3 7 7 8 Final Capacity 10 | 8 8 8 10 Final Carried 9 | 8 8 8 9 Class Distribution -------------------- 100% | Mutant Dominant Class ---------------- Mutant | -10/Materials Mutant | -10/Mines Mutant | -10/Exiles Resources | -11 -10 -10 -10 ----------- Run | Scr Mat Min Exi Matter Collected 482 | 274 151 57 . Remotely . | . . . . Salvage Created 487 | 93 267 127 . Parts 25 | 3 18 4 . Haulers Intercepted . | . . . . Recyclers Shooed . | . . . . Parts Field Recycled . | . . . . Retrieved Matter . | . . . . Parts Self-Destructed . | . . . . Prevented . | . . . . Kills | -11 -10 -10 -10 ------- Run | Scr Mat Min Exi Combat Hostiles Destroyed 9 | . 6 3 . Guns 9 | . 6 3 . Classes Destroyed 4 | 1 3 . . Recycler 3 | 1 1 1 . Watcher 1 | . 1 . . Swarmer 6 | . 3 3 . Grunt 3 | . 3 . . Best Kill Streak 5 | 1 5 2 . Combat Bots Only 4 | . 4 2 . Max Kills in Single Turn 1 | 1 1 1 . Gunslinging . | . . . . Exploded . | . . . . Melee . | . . . . Uniques/NPCs Destroyed . | . . . . Combat | -11 -10 -10 -10 -------- Run | Scr Mat Min Exi Damage Taken 902 | . 317 31 554 Core 251 | . 58 . 193 Absorbed by Shields . | . . . . Core Remaining (%) 100 | 100 . . . Volleys Fired 36 | 1 23 10 2 Largest 2 | 2 2 2 2 Hottest 40 | 40 40 40 40 Shots Fired 72 | 2 46 20 4 Gun 72 | 2 46 20 4 Cannon . | . . . . Launcher . | . . . . Special . | . . . . Kinetic 72 | 2 46 20 4 Thermal . | . . . . Explosive . | . . . . Electromagnetic . | . . . . Robot Hit Streak 10 | 1 6 10 5 Robot Miss Streak 3 | . 3 3 1 Penetration Max . | . . . . Secondary Targets 1 | . 1 . . Max Gunslinging Chain 1 | . 1 . . Shots Hit Robots 46 | 1 30 12 3 Core Hits 18 | 1 11 5 1 Critical Hits . | . . . . Critical Kills . | . . . . Critical Parts Destroyed . | . . . . Melee Attacks . | . . . . Impact . | . . . . Slashing . | . . . . Piercing . | . . . . Sneak Attacks . | . . . . Combat Hostiles . | . . . . Follow-up Attacks . | . . . . Damage Inflicted 601 | 15 359 173 54 Guns 598 | 15 359 170 54 Cannons . | . . . . Explosions . | . . . . Melee . | . . . . Ramming 3 | . . 3 . Kinetic 598 | 15 359 170 54 Thermal . | . . . . Explosive . | . . . . Electromagnetic . | . . . . Impact . | . . . . Slashing . | . . . . Piercing . | . . . . Highest Corruption . | . . . . Average Corruption . | . . . . Corruption Purged . | . . . . Overload Shots . | . . . . Overflow Damage . | . . . . Projectiles . | . . . . Explosions . | . . . . Melee . | . . . . Knockbacks . | . . . . Impact . | . . . . Kinetic . | . . . . Secondary . | . . . . Self-Inflicted Damage 1 | . . 1 . Shots . | . . . . Rammed 1 | . . 1 . Targets Rammed 1 | . . 1 . Kicked . | . . . . Crushed . | . . . . Highest Temperature 6 | . 6 . 1 Average Temperature 3 | . 6 . 1 Received Heat Transfer 240 | . 120 . 120 Siege Activations . | . . . . Robots Corrupted . | . . . . Combat Hostiles . | . . . . Parts Fried . | . . . . Impact Corruptions . | . . . . Robots Melted . | . . . . Combat Hostiles . | . . . . Parts Melted . | . . . . Heat Transferred . | . . . . Parts Sabotaged . | . . . . Parts Stolen . | . . . . Parts Stripped . | . . . . Power Chain Reactions . | . . . . Missiles Intercepted . | . . . . Alert | -11 -10 -10 -10 ------- Run | Scr Mat Min Exi Peak Influence 222 | 5 200 222 . Average Influence 125 | 2 119 151 . Maximum Alert Level 1 | . 1 1 . Low Security (%) 79 | 100 75 78 . Level 1 20 | . 24 21 . Level 2 . | . . . . Level 3 . | . . . . Level 4 . | . . . . Level 5 . | . . . . High Security . | . . . . Max Security . | . . . . Squads Dispatched 1 | . 1 . . Investigation 1 | . 1 . . Extermination . | . . . . Reinforcement . | . . . . Assault . | . . . . Garrison . | . . . . Intercept . | . . . . Construction Impeded . | . . . . Haulers Reinforced . | . . . . Stealth | -11 -10 -10 -10 --------- Run | Scr Mat Min Exi Distress Signals 2 | . 2 . . Communications Jammed . | . . . . Distress Signals . | . . . . Times Spotted 22 | . 7 6 9 Peak Tracking Total 9 | . 5 3 9 Tactical Retreats 1 | . . 1 . Traps | -11 -10 -10 -10 ------- Run | Scr Mat Min Exi Traps Triggered . | . . . . Indirectly . | . . . . Trap Hack Attempts . | . . . . Triggered . | . . . . Disarmed . | . . . . Reprogrammed . | . . . . Reused . | . . . . Traps Extracted . | . . . . Installed . | . . . . Triggered . | . . . . Machines | -11 -10 -10 -10 ---------- Run | Scr Mat Min Exi Machines Disabled 1 | . . . 1 Max in Single Turn . | . . . . Machines Sabotaged . | . . . . Garrisons Compromised . | . . . . Overloaded Fab Kills . | . . . . Fab Network Shutdowns . | . . . . Hacking | -11 -10 -10 -10 --------- Run | Scr Mat Min Exi Machines Accessed 6 | . 4 . 2 Terminals 3 | . 3 . . Fabricators . | . . . . Repair Stations . | . . . . Recycling Units 1 | . 1 . . Scanalyzers . | . . . . Garrison Access . | . . . . Total Hacks 19 | . 17 . 2 Successful 14 | . 12 . 2 Failed 5 | . 5 . . Catastrophic 1 | . 1 . . Database Lockouts . | . . . . Manual 10 | . 9 . 1 Terminals 15 | . 15 . . Fabricators . | . . . . Repair Stations . | . . . . Recycling Units 2 | . 2 . . Scanalyzers . | . . . . Garrison Access . | . . . . Terminal Hacks 8 | . 6 . 2 Record 1 | . . . 1 Robot Analysis 1 | . 1 . . Branch Access Points 1 | . 1 . . Terminal Index 1 | . 1 . . Locate Traps 2 | . 2 . . Hauler Manifests 1 | . 1 . . EX-Prototype ID Bank 1 | . . . 1 Fabricator Hacks . | . . . . Repair Station Hacks . | . . . . Recycling Unit Hacks 1 | . 1 . . Report Inventory 1 | . 1 . . Scanalyzer . | . . . . Garrison Access Hacks . | . . . . Unauthorized Hacks 10 | . 10 . . Terminals 4 | . 4 . . Track 1 | . 1 . . Botnet 2 | . 2 . . Operators 1 | . 1 . . Fabricators . | . . . . Repair Stations . | . . . . Recycling Units 1 | . 1 . . Tunnel 1 | . 1 . . Scanalyzers . | . . . . Garrison Access . | . . . . Data Cores Recovered . | . . . . Used . | . . . . Hacking Detections 3 | . 3 . . Full Trace Events . | . . . . Feedback Events . | . . . . Feedback Blocked . | . . . . Robot Schematics Acquired . | . . . . Robots Built . | . . . . Matter . | . . . . Time . | . . . . Total Robot Build Rating . | . . . . Part Schematics Acquired . | . . . . Parts Built . | . . . . Matter . | . . . . Time . | . . . . Total Part Build Rating . | . . . . Parts Repaired . | . . . . Time . | . . . . Parts Recycled . | . . . . Recycled Matter . | . . . . Retrieved Matter . | . . . . Retrieved Components . | . . . . Parts Scanalyzed . | . . . . Part Schematics Acquired . | . . . . Parts Damaged . | . . . . Bothacking | -11 -10 -10 -10 ------------ Run | Scr Mat Min Exi Used RIF Installer . | . . . . Robots Hacked . | . . . . Non-combat . | . . . . Combat . | . . . . Robot Hacks Applied . | . . . . Relay Couplers Released . | . . . . Robots Rewired . | . . . . Allies Hacked . | . . . . Hacks Repelled . | . . . . Allies | -11 -10 -10 -10 -------- Run | Scr Mat Min Exi Total Allies 3 | . . 3 . Largest Group 3 | . . 3 3 Highest-Rated Group 40 | . . 40 40 Highest-Rated Ally 16 | . . 16 16 Total Orders . | . . . . Ally Attacks 11 | . . 6 5 Total Damage 109 | . . 47 62 Kills 4 | . . 2 2 Allies Corrupted . | . . . . Allies Melted . | . . . . Intel | -11 -10 -10 -10 ------- Run | Scr Mat Min Exi Robot Analysis Total 1 | . 1 . . Derelict Logs Recovered 1 | . . 1 . Drone Launches . | . . . . Drone Recoveries . | . . . . Exploration | -11 -10 -10 -10 ------------- Run | Scr Mat Min Exi Turns Passed 1187 | 69 220 388 510 Spaces Moved 890 | 49 131 298 412 Core 1 | 1 . . . Treads 191 | . . 51 140 Legs . | . . . . Wheels 698 | 48 131 247 272 Hover . | . . . . Flight . | . . . . Fastest Speed 50 | 50 100 110 100 Average Speed 116 | 98 104 118 120 Slowest Speed 160 | 100 110 160 160 Overloaded Moves . | . . . . Propulsion Burnouts . | . . . . Robots Hopped . | . . . . Cave-ins Triggered . | . . . . Exploration Rate (%) 41 | 3 26 67 68 Regions Visited 3 Branch Regions 2 Pre-discovered Areas 2 | . 1 . 1 Known Exits Taken 1 | . 1 . . Unknown Exits Taken 2 | 1 . 1 . Scrap Searched . | . . . . Spaces Dug . | . . . . Terrain Destroyed . | . . . . Melee . | . . . . Projectile . | . . . . AOE . | . . . . Actions | -11 -10 -10 -10 --------- Run | Scr Mat Min Exi Total 969 | 64 169 313 423 Wait 11 | . 6 3 2 Move 887 | 48 130 297 412 Hop . | . . . . Pick Up 14 | 8 4 1 1 Fast Attach 7 | 7 . . . Attach 2 | . 1 . 1 Detach . | . . . . Swap 4 | . 2 . 2 Drop 7 | . 3 1 3 Fire 36 | 1 23 10 2 Melee . | . . . . Ram 1 | . . 1 . Kick . | . . . . Crush . | . . . . Escape Stasis . | . . . . Rewire . | . . . . Trap . | . . . . Miscellaneous . | . . . . Route ------- -11/Scrapyard -10/Materials -10/Mines (discovered 2 exits: Mat / *Exi) -10/Exiles (discovered 1 exit: [*Min]) History --------- Turn | Location | Event 29 | -11/Scrapyard | Discovered new exit (range 16) 70 | -11/Scrapyard | Entered Materials 100 | -10/Materials | Identified exit to Mines 290 | -10/Materials | Entered Mines 292 | -10/Mines | Identified exit to Materials 297 | -10/Mines | Assisted by bots powering up and referring to "LRC-V3" 316 | -10/Mines | Build established: Mutant 665 | -10/Mines | Deemed a non-threat by the Exiles lab entrance 667 | -10/Mines | Discovered new exit (range 5) 678 | -10/Mines | Entered Exiles 678 | -10/Exiles | Accompanied by 3 allies 699 | -10/Exiles | Discovered new exit (range 15) 718 | -10/Exiles | Met 8R-AWN 744 | -10/Exiles | Met EX-HEX 787 | -10/Exiles | Met EX-BIN 806 | -10/Exiles | Aligned with FarCom system 808 | -10/Exiles | Given EX-Vault access code 846 | -10/Exiles | Opened EX-Vault 885 | -10/Exiles | Warned to stay clear of 0b10 Research branches 952 | -10/Exiles | Met EX-DEC 970 | -10/Exiles | Learned location of Zion (-7) 1069 | -10/Exiles | Found XL Autogun Array 1151 | -10/Exiles | Attacked by the Exiles 1171 | -10/Exiles | Core integrity fell below 50% 1178 | -10/Exiles | Core integrity fell below 20% 1188 | -10/Exiles | Destroyed by as-04291 with Assembled Blade Last Messages --------------- 01163_ Rigged Rnf. Deuterium Engine explodes. 01163_ Machine disabled. 01168_ Penetrated by HV Slug. 01168_ Critical hit. 01168_ Assault Rifle destroyed. 01168_ Penetrated by HV Slug. 01168_ Rigged Lgt. Fission Core explodes. 01168_ Assault Rifle destroyed. 01168_ as-21827 destroyed. 01170_ HV Slug penetrates as-18235. 01170_ HV Slug penetrates Wall. 01170_ Penetrated by HV Slug. 01170_ HV Slug penetrates Wall. 01172_ Penetrated by HV Slug. 01172_ Com. Wheel destroyed. 01172_ HV Slug penetrates Wall. 01172_ Penetrated by HV Slug. 01172_ HV Slug penetrates Wall. 01173_ Com. Wheel destroyed. 01175_ Ion Engine destroyed. Map ----- +----------------------------------------------------+ | ?????????????????????????????????????????????? | | ?????????????????????????????????????????????? | | ?????????????????????????????????????????????? | | ?????????????????????????????????????????????? | | ?????????????????????????????????????????????? | | ?????????????????????????????????????????????? | | ?????????????????????????????????????????????? | | ?????????????????????????????????????????????? | | ?????????????????????????????????????????????? | | ?????????????????????????????????????????????? | | ?????????????????????????????????????????????? | | ?????????????????????????????????????????????? | | ?????????????????????????????????????????????? | | ?????????????????????????????????????????????? | | ?????????????????????????????????????????????? | | ?????????????????????????????????????????????? | | ?????????????????????????????????????????????? | | ?????????????????????????????????????????????? | | ?????????????????????????????????????????????? | | ??????????????????????????###????????????????? | | ????????????????????????## #????????????????? | | ???????????????????????## #????????????????? | | ???????????????????????# < #????????????????? | | ???????????????????????# #????????????????? | | ???????????????????????# #????????????????? | | ??????????????????????## @ #?????????????????? | | ?????????????????????## aa ##????????????????? | | ?????????????????????# a #????????????????? | | ?#####???????????????# #????????????????? | | ##" #??????????????## aa #????????????????? | | #" #?????????????## # #????????????????? | | # ##???????????# ###????????????????? | | #########?###g ##??????????????????? | | [ ## ### #???????????????????? | | %= a ;#???????????????????? | | = ##???????????????????? | | = ## % #???????????????????? | | %#### ##??????????????????? | | "#?#" "### ###????????????????? | | ##?####### #### * ###??????????????? | | #????????###???##### ##?????????????? | | ???????????????????### #?????????????? | | ?????????????????????### #?????????????? | | ???????????????????????### #?????????????? | | ????????????????????????#" ##????????????? | | ????????????????????????#### ###??????????? | | ???????????????????????????# ##?????????? | | ???????????????????????????## ###???????? | | ????????????????????????????### #???????? | | ??????????????????????????????# ##???????? | +----------------------------------------------------+ Best States ------------- Heat Dissipation 25 Energy Generation 10 Energy Capacity 250 Matter Stores 300 Matter Capacity 300 Sight Range 16 Terrain Scan Density 10 Evasion (%) 40 Recoil Reduction 1 Item Schematics ----------------- None Robot Schematics ------------------ None Fabricated ------------ Nothing Alien Tech Used ----------------- None Achievements -------------- None Challenges ------------ None Game ------ Seed ShadeFortressCompressor Manual? 0 Play Time 00:10:24 Cumulative 485.0 hours Start 2020.03.19 @ 19:16:02 End 2020.03.19 @ 19:25:37 Sessions 1 Manual Loads 0 Difficulty Rogue Special Mode None Game No. 132 Rogue 132 Adventurer 0 Explorer 0 Win Type - Total 39 Types 22/3/5/3/2/1/3 Lore% 95 Gallery% 99 Achievement% 90 Wizard Run 0 Options --------- ASCII 1 Keyboard 1 Movement Vi Keybinds 0 Fullscreen 1 Font 12/Smallcaps Map View 83x54 Tactical HUD 1 Map Filters NONE Filters NONE Steam 0 RUN: a551e238-ad28-4ad6-a794-021562b86da6